fUST/lending_fUST_20240605
["ID","MTS","AMOUNT","RATE_DAILY","PERIOD"]
[328548643,1717518650910,-500.0,0.00022191,2]
[328548644,1717518650919,-558.30985767,0.00022191,2]
[328548645,1717518650928,-660.45,0.00022191,2]
[328548646,1717518650937,-500.0,0.00022191,2]
[328548647,1717518650947,-524.31342419,0.00022191,2]
[328548648,1717518650956,-501.68160764,0.00022191,2]
[328548649,1717518650966,-500.0,0.00022191,2]
[328548650,1717518650976,-500.0,0.00022191,2]
[328548651,1717518650986,-500.0,0.00022191,2]
[328548652,1717518650996,-500.0,0.00022191,2]
[328548653,1717518651006,-500.0,0.00022191,2]
[328548654,1717518651017,-500.0,0.00022191,2]
[328548655,1717518651027,-500.0,0.00022191,2]
[328548656,1717518651036,-500.0,0.00022191,2]
[328548657,1717518651044,-500.0,0.00022191,2]
[328548658,1717518651054,-500.0,0.00022191,2]
[328548659,1717518651064,-500.0,0.00022191,2]
[328548660,1717518651074,-500.0,0.00022191,2]
[328548661,1717518651084,-500.0,0.00022191,2]
[328548662,1717518651093,-500.0,0.00022191,2]
[328548663,1717518651102,-500.0,0.00022191,2]
[328548664,1717518651112,-755.52,0.00022191,2]
[328548665,1717518651121,-431.61222475,0.00022191,2]
[328548666,1717518651131,-185.06821037,0.00022191,2]
[328548667,1717518651140,-500.0,0.00022191,2]
[328548668,1717518651150,-500.0,0.00022191,2]
[328548669,1717518651159,-500.0,0.00022191,2]
[328548670,1717518651168,-500.0,0.00022191,2]
[328548671,1717518651177,-500.0,0.00022191,2]
[328548672,1717518651187,-500.0,0.00022191,2]
[328548673,1717518651196,-500.0,0.00022191,2]
[328548674,1717518651206,-500.0,0.00022191,2]
[328548675,1717518651215,-500.0,0.00022191,2]
[328548676,1717518651225,-500.0,0.00022191,2]
[328548677,1717518651235,-627.0,0.00022191,2]
[328548678,1717518651246,-500.0,0.00022191,2]
[328548679,1717518651261,-500.0,0.00022191,2]
[328548680,1717518651270,-500.0,0.00022191,2]
[328548681,1717518651280,-500.0,0.00022191,2]
[328548682,1717518651290,-628.64351362,0.00022191,2]
[328548683,1717518651299,-500.0,0.00022191,2]
[328548684,1717518651309,-500.0,0.00022191,2]
[328548685,1717518651318,-500.0,0.00022191,2]
[328548686,1717518651328,-500.0,0.00022191,2]
[328548687,1717518651340,-500.0,0.00022191,2]
[328548688,1717518651350,-497.59249787,0.00022191,2]
[328548689,1717518651360,-500.0,0.00022191,2]
[328548690,1717518651369,-245.93634754,0.00022191,2]
[328548691,1717518651378,-500.0,0.00022191,2]
[328548692,1717518651387,-500.0,0.00022191,2]
[328548693,1717518651397,-504.24711822,0.00022191,2]
[328548694,1717518651406,-500.0,0.00022191,2]
[328548695,1717518651416,-500.0,0.00022191,2]
[328548696,1717518651425,-500.0,0.00022191,2]
[328548697,1717518651434,-500.90292092,0.00022191,2]
[328548698,1717518651444,-500.0,0.00022191,2]
[328548699,1717518651453,-500.0,0.00022191,2]
[328548700,1717518651462,-500.0,0.00022191,2]
[328548701,1717518651471,-500.0,0.00022191,2]
[328548702,1717518651481,-500.0,0.00022191,2]
[328548703,1717518651491,-500.0,0.00022191,2]
[328548704,1717518651501,-500.0,0.00022191,2]
[328548705,1717518651511,-500.0,0.00022191,2]
[328548706,1717518651521,-166.666666,0.00022431,2]
[328548707,1717518651531,-1879.56,0.00022454,2]
[328548708,1717518651540,-591.83,0.00022454,2]
[328548709,1717518651550,-578.37,0.00022454,2]
[328548710,1717518651559,-578.37,0.00022454,2]
[328548711,1717518651569,-578.37,0.00022454,2]
[328548712,1717518651579,-578.37,0.00022454,2]
[328548713,1717518651588,-578.37,0.00022454,2]
[328548714,1717518651598,-578.491127,0.00022454,2]
[328548715,1717518651607,-4424.04768736,0.00022455,7]
[328548716,1717518651675,-500.0,0.00022455,2]
[328548717,1717518651690,-500.0,0.00022455,2]
[328548718,1717518651700,-500.0,0.00022455,2]
[328548719,1717518651710,-500.0,0.00022455,2]
[328548720,1717518651719,-500.0,0.00022455,2]
[328548721,1717518651729,-500.0,0.00022455,2]
[328548722,1717518651738,-559.53090958,0.00022455,2]
[328548723,1717518651748,-500.0,0.00022455,2]
[328548724,1717518651757,-500.0,0.00022455,2]
[328548725,1717518651767,-500.0,0.00022455,2]
[328548726,1717518651776,-500.0,0.00022455,2]
[328548727,1717518651785,-500.0,0.00022455,2]
[328548728,1717518651795,-200.0,0.00022455,2]
[328548729,1717518651805,-500.0,0.00022455,2]
[328548730,1717518651814,-500.0,0.00022455,2]
[328548731,1717518651824,-510.99754408,0.00022455,2]
[328548732,1717518651833,-500.0,0.00022455,2]
[328548733,1717518651843,-500.0,0.00022455,2]
[328548734,1717518651852,-500.0,0.00022455,2]
[328548735,1717518651860,-500.0,0.00022455,2]
[328548736,1717518651869,-500.0,0.00022455,2]
[328548737,1717518651877,-500.0,0.00022455,2]
[328548738,1717518651885,-500.0,0.00022455,2]
[328548739,1717518651895,-500.0,0.00022455,2]
[328548740,1717518651903,-500.0,0.00022455,2]
[328548741,1717518651912,-500.0,0.00022455,2]
[328548742,1717518651921,-500.0,0.00022455,2]
[328548743,1717518651929,-500.0,0.00022455,2]
[328548744,1717518651937,-500.0,0.00022455,2]
[328548745,1717518651945,-500.0,0.00022455,2]
[328548746,1717518651954,-500.0,0.00022455,2]
[328548747,1717518651962,-500.0,0.00022455,2]
[328548748,1717518651970,-500.0,0.00022455,2]
[328548749,1717518651979,-503.11844476,0.00022455,2]
[328548750,1717518651988,-500.0,0.00022455,2]
[328548751,1717518651998,-500.0,0.00022455,2]
[328548752,1717518652007,-500.0,0.00022455,2]
[328548753,1717518652020,-500.0,0.00022455,2]
[328548754,1717518652032,-501.00053506,0.00022455,2]
[328548755,1717518652041,-500.0,0.00022455,2]
[328548756,1717518652049,-500.71871512,0.00022455,2]
[328548757,1717518652059,-500.0,0.00022455,2]
[328548758,1717518652068,-500.0,0.00022455,2]
[328548759,1717518652077,-500.0,0.00022455,2]
[328548760,1717518652086,-519.35254762,0.00022455,2]
[328548761,1717518652094,-426.10803577,0.00022455,2]
[328548762,1717518652103,-500.0,0.00022455,2]
[328548763,1717518652112,-521.90864379,0.00022455,2]
[328548764,1717518652121,-500.0,0.00022455,2]
[328548765,1717518652129,-500.0,0.00022455,2]
[328548766,1717518652138,-500.0,0.00022455,2]
[328548767,1717518652148,-500.0,0.00022455,2]
[328548768,1717518652157,-596.87522391,0.00022455,2]
[328548769,1717518652166,-500.0,0.00022455,2]
[328548770,1717518652176,-407.67539907,0.00022455,2]
[328548771,1717518652185,-500.0,0.00022455,2]
[328548772,1717518652195,-500.0,0.00022455,2]
[328548773,1717518652204,-529.99568609,0.00022455,2]
[328548774,1717518652214,-500.0,0.00022455,2]
[328548775,1717518652223,-536.66299986,0.00022455,2]
[328548776,1717518652233,-500.0,0.00022455,2]
[328548777,1717518652244,-599.23781724,0.00022455,2]
[328548778,1717518652255,-500.0,0.00022455,2]
[328548779,1717518652266,-500.0,0.00022455,2]
[328548780,1717518652275,-500.0,0.00022455,2]
[328548781,1717518652286,-514.9901329,0.00022455,2]
[328548782,1717518652296,-500.0,0.00022455,2]
[328548783,1717518652305,-631.69816406,0.00022455,2]
[328548784,1717518652315,-500.0,0.00022455,2]
[328548785,1717518652324,-500.0,0.00022455,2]
[328548786,1717518652334,-500.0,0.00022455,2]
[328548787,1717518652344,-500.0,0.00022455,2]
[328548788,1717518652353,-500.0,0.00022455,2]
[328548789,1717518652363,-500.0,0.00022455,2]
[328548790,1717518652372,-500.0,0.00022455,2]
[328548791,1717518652381,-500.0,0.00022455,2]
[328548792,1717518652390,-500.0,0.00022455,2]
[328548793,1717518652399,-500.0,0.00022455,2]
[328548794,1717518652408,-500.0,0.00022455,2]
[328548795,1717518652418,-500.0,0.00022455,2]
[328548796,1717518652427,-500.0,0.00022455,2]
[328548797,1717518652436,-500.0,0.00022455,2]
[328548798,1717518652445,-151.0,0.00022455,2]
[328548799,1717518652454,-500.0,0.00022455,2]
[328548800,1717518652463,-500.0,0.00022455,2]
[328548801,1717518652472,-500.0,0.00022455,2]
[328548802,1717518652482,-500.0,0.00022455,2]
[328548803,1717518652491,-500.0,0.00022455,2]
[328548804,1717518652500,-527.86437786,0.00022455,2]
[328548805,1717518652509,-500.0,0.00022455,2]
[328548806,1717518652519,-500.0,0.00022455,2]
[328548807,1717518652528,-500.0,0.00022455,2]
[328548808,1717518652538,-500.0,0.00022455,2]
[328548809,1717518652547,-223.16105202,0.00022455,2]
[328548810,1717518652556,-500.0,0.00022455,2]
[328548811,1717518652565,-524.2886256,0.00022455,2]
[328548812,1717518652576,-525.04587077,0.00022455,2]
[328548813,1717518652585,-548.10392293,0.00022455,2]
[328548814,1717518652595,-274.02729746,0.00022455,2]
[328548815,1717518652606,-500.0,0.00022455,2]
[328548816,1717518652616,-500.0,0.00022455,2]
[328548817,1717518652628,-500.0,0.00022455,2]
[328548818,1717518652639,-500.0,0.00022455,2]
[328548819,1717518652650,-500.0,0.00022455,2]
[328548820,1717518652659,-500.0,0.00022455,2]
[328548821,1717518652668,-500.0,0.00022455,2]
[328548822,1717518652678,-500.0,0.00022455,2]
[328548823,1717518652687,-500.0,0.00022455,2]
[328548824,1717518652697,-502.82206009,0.00022455,2]
[328548825,1717518652706,-502.77358706,0.00022455,2]
[328548826,1717518652715,-503.70545312,0.00022455,2]
[328548827,1717518652725,-184.03414734,0.00022455,2]
[328548828,1717518652734,-500.0,0.00022455,2]
[328548829,1717518652743,-1000.0,0.00022455,2]
[328548830,1717518652753,-500.0,0.00022455,2]
[328548831,1717518652763,-500.0,0.00022455,2]
[328548832,1717518652772,-500.0,0.00022455,2]
[328548833,1717518652781,-500.0,0.00022455,2]
[328548834,1717518652791,-500.0,0.00022455,2]
[328548835,1717518652800,-500.0,0.00022455,2]
[328548836,1717518652810,-501.62264052,0.00022455,2]
[328548837,1717518652819,-504.76374757,0.00022455,2]
[328548838,1717518652829,-500.0,0.00022455,2]
[328548839,1717518652838,-500.0,0.00022455,2]
[328548840,1717518652848,-603.96598397,0.00022455,2]
[328548841,1717518652857,-501.11679139,0.00022455,2]
[328548842,1717518652867,-579.46597461,0.00022455,2]
[328548843,1717518652876,-500.0,0.00022455,2]
[328548844,1717518652886,-500.0,0.00022455,2]
[328548845,1717518652895,-500.0,0.00022455,2]
[328548846,1717518652905,-500.0,0.00022455,2]
[328548847,1717518652914,-500.0,0.00022455,2]
[328548848,1717518652924,-500.0,0.00022455,2]
[328548849,1717518652934,-500.0,0.00022455,2]
[328548850,1717518652943,-500.0,0.00022455,2]
[328548851,1717518652953,-500.0,0.00022455,2]
[328548852,1717518652962,-500.0,0.00022455,2]
[328548853,1717518652972,-442.63772611,0.00022455,2]
[328548854,1717518652982,-500.0,0.00022455,2]
[328548855,1717518652992,-500.0,0.00022455,2]
[328548856,1717518653002,-500.0,0.00022455,2]
[328548857,1717518653013,-500.0,0.00022455,2]
[328548858,1717518653022,-500.0,0.00022455,2]
[328548859,1717518653092,-500.0,0.00022455,2]
[328548860,1717518653103,-500.0,0.00022455,2]
[328548861,1717518653113,-500.0,0.00022455,2]
[328548862,1717518653123,-500.0,0.00022455,2]
[328548863,1717518653133,-296.80366901,0.00022455,2]
[328548864,1717518653143,-500.0,0.00022455,2]
[328548865,1717518653153,-500.0,0.00022455,2]
[328548866,1717518653162,-250.0,0.00022455,2]
[328548867,1717518653173,-500.0,0.00022455,2]
[328548868,1717518653185,-500.0,0.00022455,2]
[328548869,1717518653197,-500.0,0.00022455,2]
[328548870,1717518653209,-500.0,0.00022455,2]
[328548871,1717518653221,-500.0,0.00022455,2]
[328548872,1717518653233,-500.0,0.00022455,2]
[328548873,1717518653245,-500.0,0.00022455,2]
[328548874,1717518653257,-500.0,0.00022455,2]
[328548875,1717518653276,-500.0,0.00022455,2]
[328548876,1717518653287,-500.0,0.00022455,2]
[328548877,1717518653298,-500.0,0.00022455,2]
[328548878,1717518653308,-548.22509223,0.00022455,2]
[328548879,1717518653320,-500.0,0.00022455,2]
[328548880,1717518653331,-500.0,0.00022455,2]
[328548881,1717518653344,-500.0,0.00022455,2]
[328548882,1717518653354,-526.4874988,0.00022455,2]
[328548883,1717518653365,-500.0,0.00022455,2]
[328548884,1717518653376,-500.0,0.00022455,2]
[328548885,1717518653387,-500.0,0.00022455,2]
[328548886,1717518653397,-500.0,0.00022455,2]
[328548887,1717518653407,-500.0,0.00022455,2]
[328548888,1717518653416,-304.70510784,0.00022455,2]
[328548889,1717518653428,-500.0,0.00022455,2]
[328548890,1717518653437,-500.0,0.00022455,2]
[328548891,1717518653447,-502.34639488,0.00022455,2]
[328548892,1717518653456,-500.0,0.00022455,2]
[328548893,1717518653467,-500.0,0.00022455,2]
[328548894,1717518653477,-500.0,0.00022455,2]
[328548895,1717518653487,-500.0,0.00022455,2]
[328548896,1717518653496,-500.0,0.00022455,2]
[328548897,1717518653506,-500.0,0.00022455,2]
[328548898,1717518653523,-500.0,0.00022455,2]
[328548899,1717518653532,-500.0,0.00022455,2]
[328548900,1717518653541,-503.028886,0.00022455,2]
[328548901,1717518653551,-500.0,0.00022455,2]
[328548902,1717518653560,-500.0,0.00022455,2]
[328548903,1717518653569,-500.0,0.00022455,2]
[328548904,1717518653578,-500.0,0.00022455,2]
[328548905,1717518653587,-591.83,0.00022455,2]
[328548906,1717518653596,-500.0,0.00022455,2]
[328548907,1717518653605,-500.0,0.00022455,2]
[328548908,1717518653614,-500.0,0.00022455,2]
[328548909,1717518653623,-500.0,0.00022455,2]
[328548910,1717518653632,-500.0,0.00022455,2]
[328548911,1717518653641,-500.0,0.00022455,2]
[328548912,1717518653651,-155.31157421,0.00022457,2]
[328548913,1717518653660,-3000.0,0.00022457,2]
[328548914,1717518653669,-3000.0,0.00022457,2]
[328548915,1717518653679,-2330.28107547,0.00022457,2]
[328548916,1717518653688,-500.0,0.00022457,2]
[328548917,1717518653697,-500.0,0.00022457,2]
[328548918,1717518653706,-500.0,0.00022457,2]
[328548919,1717518653715,-500.0,0.00022457,2]
[328548920,1717518653725,-500.0,0.00022457,2]
[328548921,1717518653735,-500.0,0.00022457,2]
[328548922,1717518653744,-500.0,0.00022457,2]
[328548923,1717518653753,-500.0,0.00022457,2]
[328548924,1717518653768,-500.0,0.00022457,2]
[328548925,1717518653777,-476.98334883,0.00022457,2]
[328548926,1717518653973,-23.01665117,0.00022457,2]
[328548927,1717518653986,-1879.56,0.00022457,2]
[328548928,1717518653999,-632.05125437,0.00022457,2]
[328548929,1717518654016,-151.0,0.00022458,2]
[328548930,1717518654030,-151.0,0.00022458,2]
[328548931,1717518654043,-1879.56,0.00022458,2]
[328548932,1717518654057,-591.83,0.00022458,2]
[328548933,1717518654071,-450.29130368,0.00022459,2]
[328548934,1717518654083,-220.46189,0.00022459,2]
[328548935,1717518654096,-501.08261326,0.00022459,2]
[328548936,1717518654108,-500.0,0.00022459,2]
[328548937,1717518654121,-500.0,0.00022459,2]
[328548938,1717518654133,-500.0,0.00022459,2]
[328548939,1717518654147,-500.0,0.00022459,2]
[328548940,1717518654159,-500.0,0.00022459,2]
[328548941,1717518654171,-500.0,0.00022459,2]
[328548942,1717518654184,-534.00045688,0.00022459,2]
[328548943,1717518654197,-500.0,0.00022459,2]
[328548944,1717518654209,-500.0,0.00022459,2]
[328548945,1717518654222,-500.0,0.00022459,2]
[328548946,1717518654235,-500.0,0.00022459,2]
[328548947,1717518654255,-500.0,0.00022459,2]
[328548948,1717518654264,-245.81285135,0.00022459,2]
[328548949,1717518654279,-254.18714865,0.00022459,2]
[328548950,1717518654291,-500.0,0.00022459,2]
[328548951,1717518654301,-500.0,0.00022459,2]
[328548952,1717518654311,-518.65329869,0.00022459,2]
[328548953,1717518654320,-500.0,0.00022459,2]
[328548954,1717518654330,-441.68683437,0.00022459,2]
[328548955,1717518654339,-500.0,0.00022459,2]
[328548956,1717518654349,-500.0,0.00022465,2]
[328548957,1717518654359,-500.0,0.00022465,2]
[328548958,1717518654368,-500.0,0.00022465,2]
[328548959,1717518654378,-500.0,0.00022465,2]
[328548960,1717518654387,-500.0,0.00022465,2]
[328548961,1717518654397,-500.0,0.00022465,2]
[328548962,1717518654407,-540.41,0.00022465,2]
[328548963,1717518654416,-504.10003465,0.00022465,2]
[328548964,1717518654426,-504.63763438,0.00022465,2]
[328548965,1717518654436,-500.0,0.00022465,2]
[328548966,1717518654445,-500.0,0.00022465,2]
[328548967,1717518654454,-500.0,0.00022465,2]
[328548968,1717518654464,-500.0,0.00022465,2]
[328548969,1717518654474,-505.0845965,0.00022465,2]
[328548970,1717518654483,-500.0,0.00022465,2]
[328548971,1717518654493,-500.0,0.00022465,2]
[328548972,1717518654503,-500.0,0.00022465,2]
[328548974,1717518654673,-500.0,0.00022465,2]
[328548975,1717518654686,-500.0,0.00022465,2]
[328548976,1717518654696,-162.57811963,0.00022465,2]
[328548977,1717518654705,-500.0,0.00022465,2]
[328548978,1717518654714,-500.0,0.00022465,2]
[328548979,1717518654723,-500.0,0.00022465,2]
[328548980,1717518654733,-504.91385984,0.00022465,2]
[328548981,1717518654742,-131.83392849,0.00022465,2]
[328548982,1717518654756,-368.16607151,0.00022465,2]
[328548983,1717518654766,-500.0,0.00022465,2]
[328548984,1717518654776,-271.76077083,0.00022465,2]
[328548986,1717518655318,154.93802479,9.999e-05,2]
[328548997,1717518701416,945.01502129,0.00015,2]
[328548998,1717518710262,154.93802479,9.999e-05,2]
[328548999,1717518710483,187.21461558,9.999e-05,2]
[328549000,1717518731855,551.95683803,9.999e-05,2]
[328549001,1717518748792,154.93802479,9.999e-05,2]
[328549002,1717518751418,926.63597867,9.999e-05,2]
[328549003,1717518755368,16178.81682543,9.999e-05,2]
[328549004,1717518761204,154.93802479,9.999e-05,2]
[328549005,1717518765517,261.76097194,9.999e-05,2]
[328549008,1717518769250,317.21490521,9.999e-05,2]
[328549009,1717518776548,156.83678931,9.999e-05,2]
[328549010,1717518780978,154.93802479,9.999e-05,2]
[328549012,1717518875661,3378.01944783,9.999e-05,2]
[328549013,1717518893565,337.68274064,9.999e-05,2]
[328549034,1717519067918,152.22096415,0.00028,120]
[328549037,1717519307220,203.0,0.00029878,40]
[328549038,1717519379971,525.5705473,9.999e-05,2]
[328549076,1717519538112,-1902.27689005,0.00017034,2]
[328549077,1717519538133,-185.24644316,0.0001704,2]
[328549078,1717519538154,-173.95546905,0.00017045,2]
[328549079,1717519538174,-215.039641,0.00017926,2]
[328549080,1717519538193,-162.93661136,0.00019,2]
[328549081,1717519538212,-250.0,0.00019096,2]
[328549082,1717519538233,-160.042634,0.00019178,2]
[328549083,1717519538253,-3584.19589994,0.00019937,2]
[328549100,1717519645128,-344.79595191,0.00018968,2]
[328549101,1717519653125,-678.99481099,0.00018968,2]
[328549102,1717519653145,-172.321471,0.00019178,2]
[328549103,1717519653165,-188.84603959,0.00019936,2]
[328549104,1717519653185,-1900.25829587,0.00019936,2]
[328549105,1717519653206,-4649.59161353,0.00019937,2]
[328549108,1717519764208,-419.34708248,0.00019998,2]
[328549109,1717519764227,-12498.33173816,0.0002,2]
[328549110,1717519764248,-154.9690062,0.00020038,2]
[328549111,1717519764269,-155.22356958,0.00020038,2]
[328549112,1717519764289,-157.21534715,0.00020038,2]
[328549113,1717519764309,-315.18440037,0.00020039,2]
[328549114,1717519764329,-4855.28318663,0.00020041,2]
[328549115,1717519764350,-266.33062012,0.00020355,2]
[328549116,1717519764370,-156.31489367,0.00020781,2]
[328549117,1717519764390,-699.0797334,0.00020781,2]
[328549118,1717519764410,-155.37987789,0.00020781,2]
[328549119,1717519764431,-262.24739883,0.00020781,2]
[328549120,1717519764452,-249.37335909,0.00020782,2]
[328549121,1717519764472,-618.70781048,0.00020782,2]
[328549122,1717519764493,-8695.84726433,0.00020783,2]
[328549123,1717519764512,-269.03282548,0.00020784,2]
[328549124,1717519764532,-8697.44491053,0.00020784,2]
[328549125,1717519764553,-154.24149141,0.00021118,2]
[328549126,1717519764574,-154.2414914,0.00021351,2]
[328549127,1717519764596,-173.6,0.00021491,5]
[328549128,1717519764617,-154.2414914,0.00021584,2]
[328549129,1717519764643,-154.2414914,0.00021817,2]
[328549130,1717519764664,-181.17,0.00021891,3]
[328549131,1717519764686,-543.54,0.00021891,3]
[328549132,1717519764716,-4109.26822895,0.00021898,2]
[328549133,1717519765121,177.55374674,0.000189,2]
[328549182,1717519832433,-159.1,0.00021485,5]
[328549185,1717519832442,-3788.00554053,0.00021798,2]
[328549188,1717519832452,-362.34,0.00021892,3]
[328549189,1717519832463,-952.3278368,0.00021898,2]
[328549191,1717519832474,-3359.15,0.00021898,2]
[328549192,1717519832485,-1131.52059472,0.00021898,2]
[328549193,1717519832760,-9127.34937214,0.00021898,2]
[328549194,1717519832769,-333.80113579,0.00021898,2]
[328549195,1717519832779,-500.0,0.00021898,2]
[328549196,1717519832788,-500.0,0.00021898,2]
[328549197,1717519832797,-500.0,0.00021898,2]
[328549198,1717519832807,-500.0,0.00021898,2]
[328549199,1717519832816,-500.0,0.00021898,2]
[328549200,1717519832825,-500.0,0.00021898,2]
[328549201,1717519832835,-500.0,0.00021898,2]
[328549202,1717519832845,-500.0,0.00021898,2]
[328549203,1717519832854,-500.0,0.00021898,2]
[328549204,1717519832863,-500.0,0.00021898,2]
[328549205,1717519832872,-500.0,0.00021898,2]
[328549207,1717519832881,-600.0,0.00021898,2]
[328549209,1717519832890,-17311.97259917,0.00021902,2]
[328549256,1717519838997,-231.50402638,0.00021901,2]
[328549257,1717519839006,-146.7321112,0.00021901,2]
[328549258,1717519839018,-353.2678888,0.00021901,2]
[328549259,1717519839027,-500.0,0.00021901,2]
[328549260,1717519839036,-500.0,0.00021901,2]
[328549261,1717519839045,-500.0,0.00021901,2]
[328549262,1717519839054,-519.97274791,0.00021901,2]
[328549263,1717519839063,-500.0,0.00021901,2]
[328549264,1717519839073,-500.0,0.00021901,2]
[328549265,1717519839082,-500.0,0.00021901,2]
[328549266,1717519839090,-500.0,0.00021901,2]
[328549267,1717519839100,-500.0,0.00021901,2]
[328549268,1717519839109,-500.0,0.00021901,2]
[328549269,1717519839117,-500.0,0.00021901,2]
[328549270,1717519839126,-500.0,0.00021901,2]
[328549271,1717519839136,-500.0,0.00021901,2]
[328549272,1717519839145,-500.0,0.00021901,2]
[328549273,1717519839154,-500.0,0.00021901,2]
[328549274,1717519839163,-320.4552989,0.00021901,2]
[328549275,1717519839173,-500.0,0.00021901,2]
[328549276,1717519839182,-500.0,0.00021901,2]
[328549277,1717519839192,-500.0,0.00021901,2]
[328549278,1717519839201,-500.0,0.00021901,2]
[328549279,1717519839210,-500.0,0.00021901,2]
[328549280,1717519839220,-500.0,0.00021901,2]
[328549281,1717519839229,-500.0,0.00021901,2]
[328549282,1717519839238,-500.0,0.00021901,2]
[328549283,1717519839248,-500.0,0.00021901,2]
[328549284,1717519839257,-500.0,0.00021901,2]
[328549285,1717519839266,-500.0,0.00021901,2]
[328549286,1717519839275,-500.0,0.00021901,2]
[328549287,1717519839284,-500.0,0.00021901,2]
[328549288,1717519839293,-500.0,0.00021901,2]
[328549289,1717519839302,-283.38011358,0.00021901,2]
[328549290,1717519839311,-500.0,0.00021901,2]
[328549291,1717519839320,-500.0,0.00021901,2]
[328549292,1717519839330,-500.0,0.00021901,2]
[328549293,1717519839340,-500.0,0.00021901,2]
[328549294,1717519839349,-500.0,0.00021901,2]
[328549295,1717519839359,-500.0,0.00021901,2]
[328549296,1717519839368,-33645.91902273,0.00021902,2]
[328549297,1717519839378,-500.0,0.00021916,2]
[328549298,1717519839387,-500.0,0.00021916,2]
[328549299,1717519839396,-166.93979045,0.00021916,2]
[328549300,1717519839406,-500.0,0.00021916,2]
[328549301,1717519839415,-450.17887943,0.00021916,2]
[328549302,1717519839424,-309.48408941,0.00021916,2]
[328549303,1717519839434,-363.47860887,0.00021916,2]
[328549304,1717519839443,-453.221048,0.00021916,2]
[328549305,1717519839452,-301.54467865,0.00021916,2]
[328549306,1717519839461,-500.0,0.00021916,2]
[328549307,1717519839472,-187.28097199,0.00021916,2]
[328549308,1717519839481,-500.0,0.00021916,2]
[328549309,1717519839490,-202.38021959,0.00021916,2]
[328549310,1717519839500,-500.0,0.00021916,2]
[328549311,1717519839509,-500.0,0.00021916,2]
[328549312,1717519839518,-500.0,0.00021916,2]
[328549313,1717519839526,-500.0,0.00021916,2]
[328549314,1717519839535,-22901.34414983,0.00021917,7]
[328549315,1717519839544,-500.0,0.00021917,2]
[328549316,1717519839555,-500.0,0.00021917,2]
[328549317,1717519839564,-425.27929339,0.00021917,2]
[328549318,1717519839573,-500.0,0.00021917,2]
[328549319,1717519839582,-500.0,0.00021917,2]
[328549320,1717519839591,-500.0,0.00021917,2]
[328549321,1717519839600,-501.04219233,0.00021917,2]
[328549322,1717519839610,-500.0,0.00021917,2]
[328549323,1717519839619,-500.0,0.00021917,2]
[328549324,1717519839628,-500.0,0.00021917,2]
[328549325,1717519839637,-549.88565809,0.00021917,2]
[328549326,1717519839646,-502.7751143,0.00021917,2]
[328549327,1717519839656,-500.0,0.00021917,2]
[328549328,1717519839670,-500.0,0.00021917,2]
[328549329,1717519839680,-500.0,0.00021917,2]
[328549330,1717519839690,-500.0,0.00021917,2]
[328549331,1717519839700,-500.0,0.00021917,2]
[328549332,1717519839710,-502.58830659,0.00021917,2]
[328549333,1717519839720,-503.90246276,0.00021917,2]
[328549334,1717519839729,-500.0,0.00021917,2]
[328549335,1717519839739,-500.0,0.00021917,2]